bitfinex/quotes_SOLUSD_20241122
["timestamp","ask_amount","ask_price","bid_price","bid_amount"]
[1732245387668,38.75548243,261.86,261.7,0.57271793]
[1732245387988,38.75548243,261.89,261.62,26.91]
[1732245388183,38.75548243,261.91,261.66,2.5]
[1732245388387,38.75548243,261.91,261.64,23.07]
[1732245388388,0.57218046,261.9,261.67,0.57274893]
[1732245388588,38.75548243,261.95,261.67,0.57274893]
[1732245388762,0.57218046,262.03,261.7,3.84]
[1732245388966,38.75548243,262.0,261.71,0.57261475]
[1732245389187,0.57218046,262.03,261.76,2.5]
[1732245389379,0.57218046,262.03,261.77,0.57252864]
[1732245389578,24.4763,262.06,261.79,2.5]
[1732245389785,0.57218046,262.14,261.8,0.57242038]
[1732245389987,38.75548243,261.83,261.51,2.5]
[1732245390204,0.57218046,261.82,261.53,23.07]
[1732245390381,38.75548243,261.75,261.45,2.5]
[1732245390581,38.75548243,261.73,261.4,5.0]
[1732245390785,0.57218046,261.81,261.57,2.5]
[1732245391091,8.8069,261.94,261.39,67.66209121]
[1732245391092,38.75548243,261.84,261.58,0.57285358]
[1732245391293,38.75548243,261.82,261.58,0.57285358]
[1732245391494,0.57218046,261.81,261.58,0.57285358]
[1732245391685,0.57218046,261.93,261.61,23.07]
[1732245392002,0.57218046,261.93,261.64,3.84]
[1732245392311,39.32766289,261.93,261.65,0.57276195]
[1732245392596,38.75548243,261.91,261.64,3.44446195]
[1732245392778,0.71602956,261.9,261.65,0.57274525]
[1732245393184,38.75548243,261.93,261.65,0.57274525]
[1732245393185,0.71603298,261.92,261.65,0.57274525]
[1732245393592,38.75548243,262.0,261.68,3.0489239]
[1732245393777,0.71584316,262.04,261.81,26.1189239]
[1732245393976,15.239692,262.23,261.81,26.1189239]
[1732245393977,38.75548243,262.11,261.85,3.0489239]
[1732245394194,38.75548243,262.05,261.86,0.57234169]
[1732245394395,0.71559522,262.04,261.74,0.57247617]
[1732245394698,4.3586539,262.15,261.78,23.07]
[1732245394699,39.47112195,262.14,261.78,23.07]
[1732245394905,0.71563952,262.14,261.83,2.5]
[1732245395207,38.75548243,262.11,261.84,0.57235745]
[1732245395397,39.47120977,262.1,261.85,0.57258187]
[1732245395784,38.75548243,261.96,261.85,0.57258187]
[1732245396101,38.75548243,261.93,261.7,0.57260439]
[1732245396275,0.71599155,261.92,261.7,0.57260439]
[1732245396705,0.71599448,261.94,261.7,0.57260439]
[1732245397081,2.5,262.1,261.7,0.57260439]
[1732245397082,0.71599064,262.06,261.7,28.64260439]
[1732245397382,38.75548243,262.06,261.77,3.84]
[1732245397685,38.75548243,262.04,261.78,0.57248357]
[1732245397886,3.8147,262.14,261.78,0.57248357]
[1732245397887,0.71573669,262.03,261.78,0.57248357]
[1732245398093,3.8147,262.14,261.78,0.57248357]
[1732245398094,0.71569168,262.06,261.78,0.57248357]
[1732245398605,0.5440539,262.15,261.85,3.84]
[1732245398783,0.5440539,262.15,261.87,3.84]
[1732245398979,0.7153577,262.14,261.88,0.57228616]
[1732245399380,38.75548243,261.89,261.68,3.84]
[1732245399582,38.75548243,261.78,261.47,2.5]
[1732245399789,38.75548243,261.76,261.46,2.5]
[1732245399995,38.75548243,261.74,261.47,0.57305431]
[1732245400396,38.75548243,261.8,261.53,25.57]
[1732245400698,38.75548243,261.74,261.54,0.57295661]
[1732245400900,11.3069,261.93,261.54,0.57295661]
[1732245400901,38.75548243,261.76,261.54,0.57295661]
[1732245401405,38.75548243,261.74,261.54,0.57295661]
[1732245401609,38.75548243,261.75,261.55,0.57311205]
[1732245401899,38.75548243,261.78,261.48,0.57310365]
[1732245402087,38.75548243,261.75,261.48,0.57310365]
[1732245402290,38.75548243,261.8,261.48,0.57310365]
[1732245402494,38.75548243,261.82,261.5,23.07]
[1732245402691,38.75548243,261.82,261.45,22.32092123]
[1732245402692,38.75548243,261.86,261.53,25.57]
[1732245402895,38.75548243,261.88,261.59,25.57]
[1732245403200,38.75548243,261.95,261.6,0.57285275]
[1732245403201,38.75548243,261.82,261.6,0.57285275]
[1732245403418,38.75548243,261.8,261.47,23.64300033]
[1732245403583,0.71625041,261.79,261.47,23.64300033]
[1732245404003,38.75548243,261.64,261.47,0.57300033]
[1732245404188,38.75548243,261.6,261.47,0.57300033]
[1732245404387,38.75548243,261.6,261.28,2.5]
[1732245404388,38.75548243,261.58,261.4,0.57339666]
[1732245405205,38.75548243,261.51,261.3,0.57343611]
[1732245405409,38.75548243,261.53,261.3,0.57343611]
[1732245405584,33.371384,261.67,261.3,0.57343611]
[1732245405585,38.75548243,261.59,261.3,0.57343611]
[1732245405785,38.75548243,261.63,261.31,28.4146]
[1732245405984,38.75548243,261.65,261.33,23.07]
[1732245406194,48.34998243,261.67,261.35,23.07]
[1732245406402,48.34998243,261.67,261.36,0.57331373]
[1732245406607,0.71664217,261.73,261.36,3.07331373]
[1732245406608,38.75548243,261.71,261.36,3.07331373]
[1732245406799,0.71655579,261.7,261.37,23.07]
[1732245407105,24.1149,261.74,261.4,2.5]
[1732245407320,24.1149,261.74,261.43,23.07]
[1732245407495,39.47190872,261.73,261.44,0.57314103]
[1732245407807,38.75548243,261.73,261.44,0.57314103]
[1732245408012,39.47195735,261.77,261.44,0.57314103]
[1732245408312,9.5945,261.78,261.44,23.64314103]
[1732245408507,38.75548243,261.79,261.44,26.14314103]
[1732245408699,38.75548243,261.83,261.49,23.07]
[1732245408901,38.75548243,261.83,261.5,0.57296313]
[1732245409094,38.75548243,261.83,261.52,3.84]
[1732245409297,0.71620391,261.88,261.56,26.91]
[1732245409503,9.5945,261.9,261.57,0.57289827]
[1732245409701,0.71598725,261.89,261.58,26.91]
[1732245409908,38.75548243,261.88,261.59,0.57286793]
[1732245410214,38.75548243,261.75,261.59,0.57286793]
[1732245410598,38.75548243,261.8,261.48,2.5]
[1732245410794,38.75548243,261.8,261.49,0.5729537]
[1732245411195,38.75548243,261.8,261.54,26.91]
[1732245411403,38.75548243,261.84,261.55,0.57296756]
[1732245411804,38.75548243,261.6,261.35,4.44564072]
[1732245412010,38.75548243,261.58,261.36,0.57342329]
[1732245412188,0.71677912,261.68,261.36,0.57342329]
[1732245412495,38.75548243,261.6,261.36,0.57342329]
[1732245412815,42.57678243,261.69,261.36,0.57342329]
[1732245412816,38.75548243,261.58,261.36,0.57342329]
[1732245412990,38.75548243,261.56,261.33,0.573471]
[1732245413190,38.75548243,261.62,261.33,0.573471]
[1732245413391,38.75548243,261.64,261.33,0.573471]
[1732245413607,38.75548243,261.66,261.33,0.573471]
[1732245413820,0.71671684,261.72,261.33,0.573471]
[1732245413821,38.75548243,261.64,261.33,0.573471]
[1732245414109,0.71667225,261.75,261.43,2.5]
[1732245414309,38.75548243,261.75,261.44,0.57306298]
[1732245414525,38.75548243,261.73,261.44,0.57306298]
[1732245414817,12.0945,261.88,261.44,0.57306298]
[1732245414818,38.75548243,261.78,261.44,0.57306298]
[1732245414999,38.75548243,261.83,261.44,23.64306298]
[1732245415206,0.71624827,261.82,261.44,0.57306298]
[1732245415398,38.75548243,261.75,261.45,0.57316157]
[1732245415599,0.71642748,261.81,261.45,0.57316157]
[1732245415917,38.75548243,261.78,261.45,0.57316157]
[1732245416114,0.71637647,261.77,261.45,0.57316157]
[1732245416292,3.8188,261.87,261.45,0.57316157]
[1732245416293,38.75548243,261.73,261.45,0.57316157]
[1732245416493,38.75548243,261.71,261.45,0.57316157]
[1732245416705,2.5,261.85,261.45,0.57316157]
[1732245416706,4.53606508,261.81,261.45,0.57316157]
[1732245416899,38.75548243,261.73,261.45,0.57316157]
[1732245417108,38.75548243,261.71,261.46,0.57322803]
[1732245417307,3.8195,261.81,261.46,0.57322803]
[1732245417308,38.75548243,261.69,261.46,0.57322803]
[1732245417616,23.776884,261.79,261.46,0.57322803]
[1732245417791,38.75548243,261.73,261.46,0.57322803]
[1732245417987,38.75548243,261.75,261.46,0.57322803]
[1732245418194,0.71643337,261.78,261.47,0.57314669]
[1732245418393,38.75548243,261.79,261.47,0.57314669]
[1732245418613,2.5,261.87,261.47,0.57314669]
[1732245418614,38.75548243,261.77,261.47,0.57314669]
[1732245418792,38.75548243,261.75,261.47,0.57314669]
[1732245419193,0.716388,261.74,261.47,0.57314669]
[1732245419400,38.75548243,261.76,261.47,0.57314669]
[1732245419618,0.71646274,261.75,261.47,0.57314669]
[1732245419818,0.71648094,261.74,261.48,2.5]
[1732245420130,38.75548243,261.83,261.49,0.57294776]
[1732245420331,39.47175536,261.82,261.49,0.57294776]
[1732245420515,38.75548243,261.8,261.49,0.57294776]
[1732245420713,0.71645015,261.79,261.49,0.57294776]
[1732245421810,0.71642833,261.78,261.49,0.57294776]
[1732245422014,38.75548243,261.8,261.49,0.57294776]
[1732245422332,38.75548243,261.78,261.49,0.57294776]
[1732245422635,0.71649046,261.77,261.49,0.57294776]
[1732245423314,39.47194985,261.76,261.49,0.57294776]
[1732245423515,0.71662721,261.81,261.5,0.57317393]
[1732245423723,39.47210964,261.81,261.5,0.57317393]
[1732245423946,38.75548243,261.79,261.5,0.57317393]
[1732245424116,0.71653468,261.78,261.44,0.57322775]
[1732245424309,38.75548243,261.77,261.44,0.57322775]
[1732245424628,0.71654239,261.76,261.44,0.57322775]
[1732245424814,62.53236643,261.75,261.44,0.57322775]
[1732245425017,62.53236643,261.73,261.44,0.57322775]
[1732245425229,0.7166612,261.72,261.44,0.57322775]
[1732245425922,23.776884,261.77,261.44,0.57322775]
[1732245426125,0.71664534,261.76,261.44,0.57322775]
[1732245426719,23.776884,261.79,261.44,0.57322775]
[1732245426929,0.71653931,261.78,261.44,0.57322775]
[1732245427428,23.776884,261.77,261.44,0.57322775]
[1732245427636,0.71657185,261.76,261.44,0.57322775]
[1732245428823,10.31107185,261.76,261.44,0.57322775]
[1732245429133,38.75548243,261.84,261.47,2.5]
[1732245429332,0.71631168,261.83,261.48,0.57304934]
[1732245429521,38.75548243,261.8,261.48,0.57304934]
[1732245429838,0.71645507,261.79,261.48,0.57304934]
[1732245430428,0.71635472,261.81,261.48,0.57304934]
[1732245430833,38.75548243,261.75,261.48,0.57304934]
[1732245431022,0.71658308,261.74,261.48,0.57304934]
[1732245431736,0.71647651,261.76,261.48,0.57304934]
[1732245432238,38.75548243,261.83,261.48,0.57304934]
[1732245432239,0.71642527,261.82,261.48,0.57304934]
[1732245432441,38.75548243,261.81,261.48,0.57304934]
[1732245432622,0.71650104,261.8,261.48,0.57304934]
[1732245433114,0.71650104,261.8,261.48,0.54362934]
[1732245433318,23.776884,261.79,261.46,0.57320385]
[1732245433537,0.71655673,261.78,261.46,0.57320385]
[1732245433740,23.776884,261.77,261.46,0.57320385]
[1732245433941,0.71662246,261.76,261.46,0.57320385]
[1732245434143,0.71662246,261.76,261.46,4.41320385]
[1732245434440,0.71651131,261.8,261.46,4.41320385]
[1732245434941,23.776884,261.79,261.46,4.41320385]
[1732245435159,0.71658889,261.78,261.46,4.41320385]
[1732245435361,0.71650533,261.83,261.46,4.41320385]
[1732245435649,24.1149,261.91,261.53,19.9717577]
[1732245435650,0.71636957,261.9,261.53,19.9717577]
[1732245435836,0.71636957,261.9,261.58,19.91606461]
[1732245436030,0.71603816,261.9,261.6,19.49105725]
[1732245436255,0.71603816,261.9,261.61,0.57280396]
[1732245436837,39.47152059,261.9,261.57,0.57303513]
[1732245437539,39.47152059,261.9,261.56,3.84]
[1732245437540,38.75548243,261.89,261.56,3.84]
[1732245437740,0.71630728,261.88,261.57,4.41304582]
[1732245438749,0.71619034,261.87,261.58,3.84]
[1732245438956,62.87038243,261.91,261.6,19.49105725]
[1732245438957,0.71629691,261.9,261.6,19.49105725]
[1732245439129,0.71629691,261.9,261.59,0.57303752]
[1732245439130,0.71629691,261.9,261.62,22.5]
[1732245439452,0.71601153,261.95,261.63,0.57280922]
[1732245439749,0.71601153,261.95,261.54,38.21272189]
[1732245439750,38.75548243,261.72,261.58,22.95095787]
[1732245439948,0.71663341,261.71,261.52,22.95095787]
[1732245440146,38.75548243,261.7,261.46,27.45137967]
[1732245440358,0.71668569,261.69,261.39,25.45095787]
[1732245440566,0.71668569,261.69,261.4,0.57335625]
[1732245440850,0.71668569,261.69,261.4,23.52431412]
[1732245441050,0.71669289,261.72,261.4,0.57335625]
[1732245441356,38.75548243,261.72,261.4,0.57335625]
[1732245441558,0.71667043,261.71,261.4,23.52431412]
[1732245441726,0.71667043,261.71,261.41,29.5388]
[1732245441927,38.75548243,261.8,261.43,20.0]
[1732245442140,38.75548243,261.78,261.45,22.95095787]
[1732245442338,38.75548243,261.78,261.46,0.5731952]
[1732245442339,0.687034,261.77,261.46,0.5731952]
[1732245442763,0.687034,261.77,261.46,23.52415307]
[1732245442944,0.687034,261.77,261.46,0.5731952]
[1732245443368,0.6869161,261.76,261.47,22.95095787]
[1732245443550,2.5,261.95,261.47,22.95095787]
[1732245443551,38.75548243,261.78,261.48,0.57318184]
[1732245443749,38.75548243,261.76,261.48,0.57318184]
[1732245443946,38.75548243,261.72,261.43,22.95095787]
[1732245444257,38.75548243,261.7,261.44,0.57338241]
[1732245444568,0.68725681,261.69,261.44,0.57338241]
[1732245444777,2.5,261.86,261.44,0.57338241]
[1732245444778,38.75548243,261.75,261.44,0.57338241]
[1732245444951,38.75548243,261.82,261.44,0.57338241]
[1732245444952,38.75548243,261.73,261.44,0.57338241]
[1732245445146,38.75548243,261.69,261.44,0.57338241]
[1732245445358,0.6873959,261.68,261.42,0.57348472]
[1732245445569,38.75548243,261.69,261.42,0.57348472]
[1732245445755,0.68730542,261.68,261.42,0.57348472]
[1732245446752,0.68725212,261.72,261.42,0.57348472]
[1732245446957,0.68725212,261.72,261.42,23.52444259]
[1732245447148,0.68725212,261.72,261.42,0.57348472]
[1732245447862,0.68725212,261.72,261.43,22.95095787]
[1732245448244,0.68725212,261.72,261.44,0.57328929]
[1732245450371,0.68725212,261.72,261.44,23.52424716]
[1732245450551,0.68725212,261.72,261.45,22.95095787]
[1732245450748,0.68725212,261.72,261.44,22.95095787]
[1732245450971,0.68725212,261.72,261.44,23.52432383]
[1732245451377,0.68725212,261.72,261.46,22.95095787]
[1732245451565,0.68725212,261.72,261.47,23.52422412]
[1732245451769,0.68711629,261.81,261.49,22.95095787]
[1732245451967,38.75548243,261.78,261.47,23.52422412]
[1732245452159,0.68716826,261.77,261.47,0.57326625]
[1732245452670,0.68716826,261.77,261.46,23.52430668]
[1732245453069,23.776884,261.76,261.47,22.95095787]
[1732245453266,0.68721403,261.75,261.46,23.52430668]
[1732245453574,0.68721403,261.75,261.47,22.95095787]
[1732245453769,0.68721403,261.75,261.48,22.95095787]
[1732245453972,23.776884,261.74,261.48,22.95095787]
[1732245454177,0.68729329,261.73,261.46,22.95095787]
[1732245454474,25.1816,261.71,261.45,22.95095787]
[1732245454678,0.68733092,261.7,261.45,0.57343274]
[1732245454862,0.68733092,261.7,261.46,22.95095787]
[1732245455183,0.68733092,261.7,261.45,23.52439061]
[1732245455473,0.68733092,261.7,261.47,22.95095787]
[1732245455650,0.68733092,261.7,261.45,0.57343274]
[1732245455651,0.68733092,261.7,261.45,23.52439061]
[1732245455851,0.68733092,261.7,261.45,0.57343274]
[1732245456060,0.68733092,261.7,261.46,22.95095787]
[1732245456265,0.68733092,261.7,261.45,23.52439061]
[1732245456467,0.68733092,261.7,261.47,22.95095787]
[1732245457263,0.68733092,261.7,261.45,0.57343274]
[1732245457678,0.68733092,261.7,261.44,23.52435945]
[1732245457881,0.68733092,261.7,261.44,0.57340158]
[1732245459083,0.68733092,261.7,261.44,23.52435945]
[1732245459292,0.68733092,261.7,261.44,0.57340158]
[1732245459475,0.68733092,261.7,261.45,0.57343035]
[1732245460063,0.68733092,261.7,261.46,3.84]
[1732245460260,0.68733092,261.7,261.48,23.776884]
[1732245460482,0.68733092,261.7,261.5,46.72784187]
[1732245460788,0.68709614,261.8,261.54,23.776884]
[1732245460976,0.68707334,261.87,261.57,23.07]
[1732245461182,9.2723,261.93,261.63,23.776884]
[1732245461370,0.68685662,261.92,261.63,23.776884]
[1732245461580,38.75548243,261.91,261.6,23.776884]
[1732245461887,0.68693945,261.9,261.59,22.95095787]
[1732245462184,38.75548243,261.86,261.56,22.95095787]
[1732245462405,4.13450567,262.03,261.6,23.776884]
[1732245462589,0.64490241,262.11,261.87,19.24664677]
[1732245462762,0.5440539,262.15,261.89,23.776884]
[1732245462963,0.64490241,262.14,261.8,42.09472161]
[1732245463272,38.75548243,262.13,261.81,23.776884]
[1732245463480,38.75548243,262.03,261.7,23.776884]
[1732245463785,38.75548243,261.99,261.68,23.776884]
[1732245463986,0.64490241,261.98,261.68,23.776884]
[1732245464171,0.64490241,261.98,261.67,2.7269]
[1732245464373,39.40038484,261.98,261.68,23.776884]
[1732245464581,0.64490241,261.98,261.69,0.57290882]
[1732245464876,41.63865876,262.08,261.63,22.95095787]
[1732245464877,38.75548243,261.97,261.63,22.95095787]
[1732245465089,38.75548243,261.93,261.6,22.95095787]
[1732245465263,38.75548243,261.91,261.57,25.67785787]
[1732245465569,38.75548243,261.89,261.57,2.7269]
[1732245465965,23.776884,261.86,261.5,71.86197948]
[1732245466171,23.776884,261.86,261.51,0.57313794]
[1732245466370,23.776884,261.86,261.51,23.52409581]
[1732245466584,23.776884,261.86,261.51,0.57313794]
[1732245467383,2.5,261.96,261.51,0.57313794]
[1732245467384,9.3101,262.16,261.78,19.55782539]
[1732245467585,9.3101,262.16,261.77,2.7269]
[1732245467586,9.3101,262.16,261.8,19.5233297]
[1732245467886,0.0440539,262.15,261.81,5.2769267]
[1732245468090,0.0440539,262.15,261.82,19.9022697]
[1732245468291,0.0440539,262.15,261.88,27.616884]
[1732245468495,0.0440539,262.15,261.89,23.776884]
[1732245468786,0.0440539,262.15,261.88,23.776884]
[1732245468986,0.0440539,262.15,261.83,4.70438551]
[1732245469290,38.79953633,262.15,261.8,23.776884]
[1732245469473,0.0440539,262.15,261.78,23.776884]
[1732245469791,38.75548243,262.12,261.8,23.776884]
[1732245469993,38.75548243,262.14,261.8,23.776884]
[1732245470196,0.0440539,262.15,261.87,23.776884]
[1732245470370,0.0440539,262.15,261.94,23.53894227]
[1732245470689,0.0440539,262.15,261.96,23.776884]
[1732245470991,0.0440539,262.15,261.97,0.57219427]
[1732245471182,0.0440539,262.15,261.99,3.84]
[1732245471373,0.0440539,262.15,262.0,27.616884]
[1732245472093,0.0440539,262.15,262.0,3.84]
[1732245472774,0.0440539,262.15,261.97,4.93549662]
[1732245472977,0.0440539,262.15,261.96,23.776884]
[1732245473379,0.0440539,262.15,261.97,0.57230991]
[1732245474001,0.0440539,262.15,261.98,23.776884]
[1732245474372,0.0440539,262.15,261.97,5.50780653]
[1732245475073,0.0440539,262.15,261.98,23.776884]
[1732245475473,0.0440539,262.15,262.0,23.776884]
[1732245475790,9.3101,262.21,262.02,23.776884]
[1732245476097,0.2,262.3,262.02,23.776884]
[1732245476672,38.75548243,262.29,261.95,4.31178452]
[1732245476878,361.22128602,262.35,262.08,19.04064289]
[1732245477192,361.22128602,262.35,262.1,23.776884]
[1732245477397,351.70795323,262.35,262.1,23.776884]
[1732245477569,351.70795323,262.35,262.11,4.93549662]
[1732245477770,351.70795323,262.35,262.12,23.776884]
[1732245477973,351.70795323,262.35,262.14,23.776884]
[1732245478174,351.70795323,262.35,262.14,34.02860962]
[1732245478388,351.70795323,262.35,262.18,42.93151236]
[1732245478594,295.61699251,262.35,262.21,19.95731359]
[1732245478901,295.61699251,262.35,262.2,23.776884]
[1732245478902,295.61699251,262.35,262.23,23.776884]
[1732245479074,295.61699251,262.35,262.24,4.98256233]
[1732245479476,295.61699251,262.35,262.13,4.93549662]
[1732245479798,288.76889335,262.35,262.14,4.673379]
[1732245479986,288.76889335,262.35,262.15,5.50734099]
[1732245480210,288.76889335,262.35,262.16,4.91893455]
[1732245480394,288.76889335,262.35,262.15,4.93549662]
[1732245481003,288.76889335,262.35,262.16,4.91893455]
[1732245481301,288.76889335,262.35,262.17,4.93549662]
[1732245481491,288.76889335,262.35,262.18,23.776884]
[1732245481691,288.76889335,262.35,262.19,4.93549662]
[1732245482109,288.76889335,262.35,262.05,4.93549662]
[1732245482110,38.75548243,262.33,262.05,4.93549662]
[1732245482295,327.52437578,262.35,262.05,4.93549662]
[1732245482622,288.76889335,262.35,262.05,4.93549662]
[1732245483211,288.76889335,262.35,262.05,13.80510458]
[1732245483412,288.76889335,262.35,262.08,23.776884]
[1732245483618,288.76889335,262.35,262.09,4.93549662]
[1732245483789,288.76889335,262.35,262.1,23.776884]
[1732245483991,288.76889335,262.35,262.11,8.77549662]
[1732245484210,288.76889335,262.35,262.15,3.84]
[1732245484511,288.76889335,262.35,262.2,23.776884]
[1732245485216,288.76889335,262.35,262.16,4.93549662]
[1732245485425,288.76889335,262.35,262.01,19.32003542]
[1732245485426,288.76889335,262.35,262.09,4.93549662]
[1732245485596,327.52437578,262.35,262.09,4.93549662]
[1732245486124,38.75548243,262.27,262.0,3.73355877]
[1732245486305,38.75548243,262.27,262.01,8.77549662]
[1732245486900,38.75548243,262.25,262.01,4.93549662]
[1732245487107,38.75548243,262.27,262.01,4.93549662]
[1732245487507,38.75548243,262.28,262.01,4.93549662]
[1732245488001,288.76889335,262.35,262.06,22.82]
[1732245488305,288.76889335,262.35,262.14,26.66]
[1732245488615,288.76889335,262.35,262.2,3.84]
[1732245488816,288.76889335,262.35,262.22,3.84]
[1732245489014,288.76889335,262.35,262.23,23.776884]
[1732245489517,288.76889335,262.35,262.25,23.776884]
[1732245489719,288.76889335,262.35,262.26,4.33227344]
[1732245490023,288.76889335,262.35,262.27,23.776884]
[1732245490236,288.76889335,262.35,262.28,4.28655678]
[1732245490407,288.76889335,262.35,262.29,23.776884]
[1732245490720,288.76889335,262.35,262.1,22.82]
[1732245490913,288.76889335,262.35,262.19,4.17793455]
[1732245491105,288.76889335,262.35,262.11,5.5072909]
[1732245491436,288.76889335,262.35,262.13,3.84]
[1732245491614,288.76889335,262.35,262.15,3.84]
[1732245491920,288.76889335,262.35,262.14,4.93549662]
[1732245492110,288.76889335,262.35,261.99,19.44630484]
[1732245492314,288.76889335,262.35,262.09,3.84]
[1732245492521,38.75548243,262.34,262.08,8.66905539]
[1732245492819,38.75548243,262.3,261.97,0.57212565]
[1732245493027,34.6189,262.31,262.05,4.93549662]
[1732245493229,34.6189,262.31,262.06,0.57189831]
[1732245493402,0.57189831,262.3,262.07,4.93549662]
[1732245493815,0.57189831,262.3,262.08,0.57202168]
[1732245494022,0.57189831,262.3,262.09,4.93549662]
[1732245494233,0.57189831,262.3,262.1,0.57199728]
[1732245494407,34.6189,262.31,262.11,4.93549662]
[1732245494716,288.76889335,262.35,262.15,42.62531191]
[1732245494924,288.76889335,262.35,262.21,22.82]
[1732245495246,288.76889335,262.35,262.23,23.776884]
[1732245495425,288.76889335,262.35,262.28,3.84]
[1732245495621,288.76889335,262.35,262.29,32.01264078]
[1732245495945,288.76889335,262.35,262.29,23.776884]
[1732245496527,288.76889335,262.35,262.16,26.55355877]
[1732245496528,288.76889335,262.35,262.31,23.776884]
[1732245496726,288.76889335,262.35,262.33,23.776884]
[1732245497224,288.76889335,262.35,262.28,4.93549662]
[1732245497225,264.99889335,262.35,262.34,4.27254566]
[1732245497941,264.99889335,262.35,262.33,3.84]
[1732245498331,261.73059335,262.35,262.22,0.57167185]
[1732245498531,246.41459335,262.35,262.24,19.26321472]
[1732245498731,233.55719335,262.35,262.25,4.93549662]
[1732245498936,233.55719335,262.35,262.25,28.91213275]
[1732245499146,229.07939335,262.35,262.26,22.82]
[1732245499445,226.65438149,262.35,262.29,23.776884]
[1732245499755,226.65438149,262.35,262.26,3.84]
[1732245499935,226.65438149,262.35,262.26,8.77549662]
[1732245500244,226.65438149,262.35,262.28,3.84]
[1732245500628,226.65438149,262.35,262.29,9.54784784]
[1732245500821,226.65438149,262.35,262.29,4.93549662]
[1732245502132,226.65438149,262.35,262.29,9.54784784]
[1732245502339,225.79118073,262.35,262.3,4.61235122]
[1732245502532,225.79118073,262.35,262.31,4.93549662]
[1732245502740,225.79118073,262.35,262.32,4.865129]
[1732245502954,225.79118073,262.35,262.32,9.80062562]
[1732245503153,225.79118073,262.35,262.34,42.65235607]
[1732245503154,214.12038096,262.35,262.34,42.65235607]
[1732245503358,192.04538573,262.35,262.34,60.96662956]
[1732245503535,138.9077616,262.35,262.34,51.89508652]
[1732245503737,130.22003574,262.35,262.34,54.39508652]
[1732245503951,108.66099754,262.35,262.34,54.39508652]
[1732245504153,95.37250152,262.35,262.34,36.6547992]
[1732245504367,82.75142847,262.35,262.34,54.56266025]
[1732245504655,78.8661782,262.35,262.34,58.16818911]
[1732245504839,75.34355129,262.35,262.34,58.16818911]
[1732245505040,29.59826007,262.35,262.34,60.20508597]
[1732245505367,11.96853683,262.35,262.34,58.07445642]
[1732245505554,2.57600542,262.35,262.34,8.28213314]
[1732245505864,2.57600542,262.35,262.34,0.09367462]
[1732245506162,2.07600542,262.35,262.34,11.44227769]
[1732245506335,1.09090909,262.41,262.34,11.44227769]
[1732245506336,1.09090909,262.41,262.36,19.08336279]
[1732245506540,24.0562,262.6,262.37,36.62317489]
[1732245506738,0.80032831,262.67,262.41,26.66]
[1732245506935,0.22843,262.67,262.43,26.66]
[1732245507236,0.22843,262.67,262.45,26.66]
[1732245507436,0.22843,262.67,262.49,42.65976179]
[1732245507661,0.22843,262.67,262.51,26.66]
[1732245507864,0.22843,262.67,262.53,22.82]
[1732245508058,0.22843,262.67,262.57,25.32]
[1732245508257,0.22843,262.67,262.59,22.82]
[1732245508465,0.22843,262.67,262.61,22.82]
[1732245508641,0.22843,262.67,262.58,19.26753645]
[1732245508642,0.22843,262.67,262.63,26.66]
[1732245508961,0.22843,262.67,262.54,7.57390112]
[1732245508962,0.22843,262.67,262.66,22.82]
[1732245509167,0.22843,262.67,262.66,33.20795369]
[1732245509463,0.22843,262.67,262.66,37.14855481]
[1732245509847,0.22843,262.67,262.66,33.20795369]
[1732245510053,0.22843,262.67,262.66,10.38795369]
[1732245510454,0.22843,262.67,262.66,33.20795369]
[1732245510676,0.22843,262.67,262.66,6.05750308]
[1732245511068,0.22843,262.67,262.59,6.17305864]
[1732245511463,0.22843,262.67,262.59,6.74393109]
[1732245511647,9.5231,262.96,262.69,2.72843]
[1732245511848,9.5231,262.96,262.7,32.87111959]
[1732245512066,9.5231,262.96,262.71,22.82]
[1732245512274,9.5231,262.96,262.73,22.82]
[1732245512468,9.5231,262.96,262.68,19.20760116]
[1732245512469,0.1,263.12,262.85,22.82]
[1732245512781,0.1,263.12,262.96,22.82]
[1732245512947,7.57940548,263.02,262.97,0.56985471]
[1732245513150,0.1,263.12,262.94,4.19829001]
[1732245513454,0.1,263.12,262.98,8.3574295]
[1732245513677,0.1,263.12,263.01,1.1]
[1732245513998,0.1,263.12,263.02,0.56983261]
[1732245514158,7.7379394,263.12,263.03,7.80656411]
[1732245514360,0.1,263.12,263.04,0.56977451]
[1732245514558,0.1,263.12,263.04,3.74834453]
[1732245514776,38.3665807,263.08,262.8,3.84]
[1732245514978,47.8896807,263.06,262.75,3.07815338]
[1732245515159,47.8896807,263.06,262.74,22.82]
[1732245515363,47.8896807,263.06,262.76,22.82]